bitfinex/quotes_ETHUSD_20241013
["timestamp","ask_amount","ask_price","bid_price","bid_amount"]
[1728798128867,1.27753455,2470.2,2470.1,4.04841]
[1728798130311,1.27753455,2470.3,2470.1,4.04841]
[1728798130992,0.85054508,2470.2,2470.1,4.04841]
[1728798133639,0.85054508,2470.2,2470.1,7.26265895]
[1728798133806,2.49043676,2470.5,2470.2,4.04825]
[1728798133807,0.85054508,2470.3,2470.2,4.04825]
[1728798134012,1.27753455,2470.5,2470.3,4.04809]
[1728798134013,0.85054508,2470.5,2470.3,4.04809]
[1728798134197,0.85054508,2470.6,2470.4,0.755]
[1728798134396,0.85054508,2470.6,2470.5,5.54733632]
[1728798134838,0.85054508,2470.6,2470.4,6.30249632]
[1728798135908,0.85054508,2470.6,2470.4,4.04792]
[1728798136310,1.63774508,2470.7,2470.4,4.04792]
[1728798137245,1.63774508,2470.7,2470.4,8.09573]
[1728798137470,0.85054508,2470.7,2470.4,9.59530632]
[1728798137645,0.07715068,2470.6,2470.4,9.59530632]
[1728798138169,0.07715068,2470.6,2470.5,5.54733632]
[1728798138509,0.07715068,2470.6,2470.5,4.04776]
[1728798138709,1.63774508,2470.8,2470.5,4.04776]
[1728798138943,0.07711076,2470.6,2470.5,4.04776]
[1728798139148,1.63774508,2470.8,2470.5,4.04776]
[1728798139333,0.07711076,2470.6,2470.5,4.04776]
[1728798139809,1.63774508,2470.8,2470.5,4.04776]
[1728798140008,0.07711076,2470.6,2470.5,4.04776]
[1728798140257,1.63774508,2470.8,2470.5,4.04776]
[1728798140428,0.07711076,2470.6,2470.5,4.04776]
[1728798140627,1.63774508,2470.8,2470.5,4.04776]
[1728798140842,0.07711076,2470.6,2470.5,4.04776]
[1728798141042,1.63774508,2470.8,2470.5,5.00727463]
[1728798141254,0.07711076,2470.6,2470.5,5.00727463]
[1728798141410,1.63774508,2470.8,2470.5,5.00727463]
[1728798141613,0.07711076,2470.6,2470.5,5.76227463]
[1728798141863,1.63774508,2470.8,2470.5,5.76227463]
[1728798142064,0.07711076,2470.6,2470.5,4.80276]
[1728798142263,1.63774508,2470.8,2470.5,4.80276]
[1728798142415,0.07711076,2470.6,2470.5,4.80276]
[1728798142755,1.63774508,2470.8,2470.5,4.80276]
[1728798142925,0.07711076,2470.6,2470.5,4.80276]
[1728798143121,1.63774508,2470.8,2470.5,5.83777463]
[1728798143327,0.07711076,2470.6,2470.5,5.83777463]
[1728798143527,0.7872,2470.8,2470.5,5.83777463]
[1728798144143,0.07721074,2470.7,2470.5,5.83777463]
[1728798144459,0.7872,2470.8,2470.5,5.83777463]
[1728798144756,0.07711076,2470.6,2470.5,5.83777463]
[1728798145258,0.7872,2470.8,2470.5,5.83777463]
[1728798145454,0.07711076,2470.6,2470.5,5.83777463]
[1728798145612,0.7872,2470.8,2470.5,5.83777463]
[1728798145815,0.07711076,2470.6,2470.5,5.83777463]
[1728798146042,0.7872,2470.8,2470.5,5.83777463]
[1728798146751,0.7872,2470.8,2470.5,1.79001463]
[1728798146948,0.07721074,2470.7,2470.5,0.755]
[1728798147125,0.7872,2470.8,2470.4,4.04781]
[1728798147454,0.07721074,2470.7,2470.4,4.04781]
[1728798147663,0.7872,2470.8,2470.4,4.04781]
[1728798148263,0.07721074,2470.7,2470.4,8.09562]
[1728798148448,0.7872,2470.8,2470.4,8.09562]
[1728798148652,0.07711076,2470.6,2470.4,8.09562]
[1728798148969,0.07701077,2470.5,2470.4,4.04781]
[1728798149127,0.7872,2470.8,2470.4,4.04781]
[1728798149322,0.7872,2470.8,2470.4,5.54738632]
[1728798149641,0.07721074,2470.7,2470.4,5.54738632]
[1728798149960,0.07711076,2470.6,2470.4,5.54738632]
[1728798150139,0.7872,2470.8,2470.4,5.54738632]
[1728798150343,0.07721074,2470.7,2470.4,5.54738632]
[1728798150526,0.7872,2470.8,2470.4,5.54738632]
[1728798150729,0.07721074,2470.7,2470.4,5.54738632]
[1728798150928,0.7872,2470.8,2470.4,5.54738632]
[1728798151130,0.07721074,2470.7,2470.4,5.54738632]
[1728798151329,0.7872,2470.8,2470.4,5.54738632]
[1728798151629,0.07721074,2470.7,2470.4,5.54738632]
[1728798151829,0.7872,2470.8,2470.4,5.54738632]
[1728798152068,0.07711076,2470.6,2470.4,5.54738632]
[1728798152409,0.7872,2470.8,2470.4,5.54738632]
[1728798152528,0.07701077,2470.5,2470.4,5.54738632]
[1728798152728,0.7872,2470.8,2470.4,5.54738632]
[1728798152952,0.07721074,2470.7,2470.4,5.54738632]
[1728798153168,0.7872,2470.8,2470.4,5.54738632]
[1728798153368,0.07721074,2470.7,2470.4,5.54738632]
[1728798153676,0.7872,2470.8,2470.4,5.54738632]
[1728798153989,0.7872,2470.8,2470.4,4.04781]
[1728798154134,0.07721861,2470.7,2470.4,4.04781]
[1728798154468,0.7872,2470.8,2470.4,4.04781]
[1728798154631,0.07716499,2470.6,2470.4,4.04781]
[1728798155032,0.7872,2470.8,2470.4,4.04781]
[1728798155232,0.07731813,2470.5,2470.4,9.59517632]
[1728798155478,0.7872,2470.8,2470.4,10.63801395]
[1728798155631,0.077065,2470.5,2470.4,5.54736632]
[1728798155831,0.7872,2470.8,2470.4,9.59518632]
[1728798156032,0.07735739,2470.5,2470.4,9.59518632]
[1728798156448,0.7872,2470.8,2470.4,9.59518632]
[1728798156647,0.07735739,2470.5,2470.4,9.59518632]
[1728798156848,0.7872,2470.8,2470.4,10.63802495]
[1728798157187,0.7872,2470.8,2470.4,9.59518632]
[1728798157490,0.07755734,2470.7,2470.4,9.59518632]
[1728798157786,0.7872,2470.8,2470.4,9.59518632]
[1728798158081,0.07745737,2470.6,2470.4,5.54736632]
[1728798158287,0.7872,2470.8,2470.4,5.54736632]
[1728798158486,0.07735739,2470.5,2470.4,5.54736632]
[1728798158688,0.7872,2470.8,2470.4,5.54736632]
[1728798158852,0.07735739,2470.5,2470.4,5.54736632]
[1728798159052,0.7872,2470.8,2470.4,5.54736632]
[1728798159252,0.07735739,2470.5,2470.4,5.54736632]
[1728798159479,0.7872,2470.8,2470.4,5.54736632]
[1728798159683,0.07735739,2470.5,2470.4,4.04779]
[1728798159988,0.07731813,2470.5,2470.4,4.04779]
[1728798160297,0.7872,2470.8,2470.4,4.04779]
[1728798160445,0.07731813,2470.5,2470.4,4.04779]
[1728798160652,0.7872,2470.8,2470.4,4.04779]
[1728798160853,0.07731813,2470.5,2470.4,4.04779]
[1728798161082,0.7872,2470.8,2470.4,4.04779]
[1728798161289,0.07731813,2470.5,2470.4,4.04779]
[1728798161765,0.7872,2470.8,2470.4,4.04779]
[1728798161967,0.07751808,2470.7,2470.4,4.04779]
[1728798162163,0.7872,2470.8,2470.4,4.04779]
[1728798162380,0.07751808,2470.7,2470.4,4.04779]
[1728798162678,1.63774508,2470.8,2470.4,4.04779]
[1728798163189,0.07751808,2470.7,2470.4,4.04779]
[1728798163394,1.63774508,2470.8,2470.4,4.04779]
[1728798163556,0.07741811,2470.6,2470.4,4.04779]
[1728798163894,1.63774508,2470.8,2470.4,4.04779]
[1728798164079,0.07731813,2470.5,2470.4,4.04779]
[1728798164264,1.63774508,2470.8,2470.4,4.04779]
[1728798164584,0.07731813,2470.5,2470.4,4.04779]
[1728798164790,1.63774508,2470.8,2470.4,4.04779]
[1728798164997,0.07732013,2470.5,2470.4,4.04779]
[1728798165298,1.63774508,2470.8,2470.4,4.04779]
[1728798165509,0.07732013,2470.5,2470.4,4.04779]
[1728798166167,1.63774508,2470.8,2470.4,4.04779]
[1728798166393,0.07752008,2470.7,2470.4,4.04779]
[1728798166595,1.63774508,2470.8,2470.4,4.04779]
[1728798166890,0.07745937,2470.6,2470.4,4.04779]
[1728798167107,1.63774508,2470.8,2470.4,4.04779]
[1728798167462,0.07735939,2470.5,2470.4,4.04779]
[1728798167635,1.63774508,2470.8,2470.4,4.04779]
[1728798167906,0.07735939,2470.5,2470.4,4.04779]
[1728798168113,0.85054508,2470.7,2470.4,5.54736632]
[1728798168602,0.07745937,2470.6,2470.4,5.54736632]
[1728798170311,0.07745937,2470.6,2470.4,4.04779]
[1728798171388,0.92800445,2470.6,2470.4,4.04779]
[1728798174722,0.85054508,2470.5,2470.4,4.04779]
[1728798175086,0.92786718,2470.5,2470.4,4.04779]
[1728798177484,0.92786718,2470.5,2470.4,4.17453643]
[1728798178226,1.35485665,2470.5,2470.4,4.17453643]
[1728798179399,1.35485665,2470.5,2470.4,4.47797417]
[1728798183014,1.35485665,2470.5,2470.4,4.04779]
[1728798183215,1.35485665,2470.5,2470.4,4.17453541]
[1728798183416,1.35485665,2470.5,2470.4,4.47797417]
[1728798184029,0.0773221,2470.5,2470.4,4.17453541]
[1728798184202,1.35465747,2470.5,2470.4,4.47799951]
[1728798186861,1.35465747,2470.5,2470.4,4.04779]
[1728798187161,1.35465747,2470.5,2470.4,4.47798381]
[1728798190446,1.35465747,2470.5,2470.4,4.04779]
[1728798190659,1.35465747,2470.5,2470.4,4.47795901]
[1728798194373,1.35465747,2470.5,2470.4,4.4779572]
[1728798199370,0.0773221,2470.5,2470.4,4.4779572]
[1728798199669,1.35465747,2470.5,2470.4,4.4779572]
[1728798201569,1.35465747,2470.5,2470.4,4.35121027]
[1728798201781,1.35465747,2470.5,2470.4,4.17453523]
[1728798201945,1.35465747,2470.5,2470.4,4.47794412]
[1728798202270,1.35465747,2470.5,2470.4,4.47794206]
[1728798202634,1.35465747,2470.5,2470.4,4.47794185]
[1728798205235,1.35465747,2470.5,2470.4,4.17453502]
[1728798205573,1.35465747,2470.5,2470.4,4.47793963]
[1728798212902,1.35465747,2470.5,2470.4,4.47803794]
[1728798216613,1.35465747,2470.5,2470.4,4.47803783]
[1728798220183,1.35465747,2470.5,2470.4,4.47803796]
[1728798223184,1.35465747,2470.5,2470.4,4.47803729]
[1728798227337,1.35465747,2470.5,2470.4,4.35129235]
[1728798227500,1.35465747,2470.5,2470.4,4.47806191]
[1728798231144,1.35465747,2470.5,2470.4,4.35131685]
[1728798231358,1.35465747,2470.5,2470.4,4.47807429]
[1728798232922,1.35465747,2470.5,2470.4,4.35132752]
[1728798233161,1.35465747,2470.5,2470.4,4.47807364]
[1728798234965,1.35465747,2470.5,2470.4,4.47809503]
[1728798237372,1.3546884,2470.5,2470.4,4.47809503]
[1728798238630,1.3546884,2470.5,2470.4,4.4781017]
[1728798239649,0.0773221,2470.5,2470.4,4.4781017]
[1728798240147,1.35467966,2470.5,2470.4,4.4781017]
[1728798240342,1.35467966,2470.5,2470.4,0.12674835]
[1728798240343,1.78055886,2470.5,2470.4,0.12674835]
[1728798240760,1.78055886,2470.5,2470.2,4.04822]
[1728798241067,1.27743966,2470.3,2470.2,4.04822]
[1728798241270,1.34645766,2470.4,2470.2,4.47859677]
[1728798241435,1.27743966,2470.4,2470.3,0.43037677]
[1728798241636,1.27743966,2470.4,2470.3,0.43033033]
[1728798242050,1.27743966,2470.4,2470.3,0.12675702]
[1728798242453,1.34647496,2470.4,2470.3,0.12675702]
[1728798243688,0.8382353,2470.4,2470.3,0.12675702]
[1728798244206,2.11514986,2470.4,2470.1,4.45853647]
[1728798244392,0.85127655,2470.2,2470.1,7.45853647]
[1728798244606,0.85127655,2470.3,2470.1,7.88879419]
[1728798244799,0.068818,2470.2,2470.1,11.50682647]
[1728798245113,0.85127655,2470.3,2470.1,11.63358537]
[1728798245418,0.91879074,2470.2,2470.1,11.50682647]
[1728798245570,0.91879074,2470.2,2470.1,11.63358627]
[1728798246182,0.06751419,2470.2,2470.1,11.63358627]
[1728798246392,0.06751419,2470.2,2470.1,7.58525627]
[1728798246599,0.85127655,2470.3,2470.1,7.58525627]
[1728798246830,0.91883001,2470.2,2470.1,7.04829]
[1728798246991,0.91883001,2470.2,2470.1,7.17505005]
[1728798247317,0.06755346,2470.2,2470.1,7.17505005]
[1728798247521,0.85127655,2470.3,2470.1,11.22337005]
[1728798247830,0.85127655,2470.3,2470.2,0.12676005]
[1728798248516,0.85127655,2470.3,2470.2,4.17501005]
[1728798249226,0.85127655,2470.3,2470.0,0.40374294]
[1728798249227,1.27691456,2470.3,2470.0,0.40374294]
[1728798249385,1.27691456,2470.3,2470.1,0.12676639]
[1728798249386,0.85105422,2470.2,2470.1,0.12676639]
[1728798249586,2.07861456,2470.2,2470.0,0.40374294]
[1728798249837,2.07861456,2470.2,2469.6,0.48549495]
[1728798249838,0.8017,2470.0,2469.6,0.48549495]
[1728798250048,1.65281237,2470.0,2469.7,0.12677556]
[1728798250337,0.85111237,2469.9,2469.7,0.40463528]
[1728798250722,0.85111237,2469.8,2469.7,0.40463528]
[1728798251331,0.85111237,2469.9,2469.7,0.40463528]
[1728798251531,0.85111237,2469.9,2469.7,4.45359528]
[1728798251833,0.85111237,2469.9,2469.7,4.04896]
[1728798252443,2.35068869,2469.9,2469.6,0.41208802]
[1728798253692,0.8017,2469.8,2469.6,0.41208802]
[1728798255896,0.8017,2469.8,2469.5,4.04927]
[1728798257732,0.06672343,2469.7,2469.5,4.04927]
[1728798258043,0.8017,2469.8,2469.5,4.04927]
[1728798258236,0.06662337,2469.6,2469.5,4.04927]
[1728798258394,0.8017,2469.8,2469.5,4.04927]
[1728798258936,0.06672343,2469.7,2469.5,4.45936142]
[1728798259089,0.8017,2469.8,2469.5,4.45936142]
[1728798259293,0.06662337,2469.6,2469.5,4.45936142]
[1728798259492,0.8017,2469.8,2469.5,4.45936142]
[1728798259710,0.06662337,2469.6,2469.5,4.45936142]
[1728798259928,0.8017,2469.8,2469.5,4.45936142]
[1728798260130,0.06662337,2469.6,2469.5,4.45936142]
[1728798260338,2.30127632,2469.8,2469.5,4.45936142]
[1728798260543,0.06662337,2469.6,2469.5,0.41009142]
[1728798260838,0.8017,2469.8,2469.5,0.41009142]
[1728798261040,0.06662337,2469.6,2469.5,0.41009142]
[1728798261248,0.8017,2469.8,2469.5,0.41009142]
[1728798261249,1.49957632,2469.7,2469.5,0.41009142]
[1728798261468,0.8017,2469.8,2469.5,0.41009142]
[1728798261469,0.06662337,2469.6,2469.5,0.41009142]
[1728798261754,2.30127632,2469.8,2469.5,0.41009142]
[1728798261927,0.06504474,2469.6,2469.5,0.41009142]
[1728798262258,2.30127632,2469.8,2469.5,0.41009142]
[1728798262457,0.06504474,2469.6,2469.5,0.41009142]
[1728798262678,2.30127632,2469.8,2469.5,0.41009142]
[1728798262969,0.06504474,2469.6,2469.5,0.41009142]
[1728798263165,1.49957632,2469.7,2469.5,0.41009142]
[1728798263331,0.06504474,2469.6,2469.5,0.41009142]
[1728798279147,0.06495838,2469.6,2469.5,0.41009142]
[1728798279446,2.30127632,2469.8,2469.5,0.41009142]
[1728798279614,0.06495838,2469.6,2469.1,7.86382]
[1728798279816,1.49957632,2469.6,2469.1,0.8138]
[1728798280041,0.06485825,2469.5,2469.1,4.86385]
[1728798282842,0.06485825,2469.5,2469.4,0.40519374]
[1728798285107,0.06485825,2469.5,2468.7,4.83418]
[1728798285108,0.8017,2469.3,2468.7,4.83418]
[1728798285335,1.49957632,2469.0,2468.7,0.7836]
[1728798285533,1.49957632,2469.1,2468.7,0.7836]
[1728798285708,1.49957632,2469.1,2468.7,4.83431]
[1728798285932,0.06433266,2469.0,2468.7,4.83431]
[1728798286112,0.06433266,2469.0,2468.7,0.7836]
[1728798287030,0.06433266,2469.0,2468.7,1.18964584]
[1728798291054,1.56390898,2469.0,2468.7,1.18964584]
[1728798296354,1.49957632,2468.8,2468.3,4.82175]
[1728798296660,1.49957632,2468.8,2468.4,4.05118]
[1728798296820,0.06166309,2468.7,2468.3,4.82175]
[1728798297238,1.49957632,2468.8,2468.3,8.87299]
[1728798297526,0.06156289,2468.6,2468.4,4.05117]
[1728798297742,0.06146268,2468.5,2468.4,4.05117]
[1728798298029,2.30127632,2468.9,2468.4,4.05117]
[1728798298245,0.06146268,2468.5,2468.4,4.05117]
[1728798298648,2.30127632,2468.9,2468.4,4.05117]
[1728798298815,0.06146268,2468.5,2468.4,4.05117]
[1728798299018,2.30127632,2468.9,2468.4,4.05117]
[1728798299218,0.05923692,2468.5,2468.4,4.45688087]
[1728798299472,2.30127632,2468.9,2468.4,4.45688087]
[1728798299621,0.05923692,2468.5,2468.4,4.45688087]
[1728798299821,2.30127632,2468.9,2468.4,4.45688087]
[1728798300066,0.05923692,2468.5,2468.4,4.45688087]
[1728798300272,2.30127632,2468.9,2468.4,4.45688087]
[1728798300570,0.05923692,2468.5,2468.4,0.40571087]
[1728798300721,2.30127632,2468.9,2468.4,0.40571087]
[1728798300920,0.05953753,2468.8,2468.4,0.40571087]
[1728798308975,5.55061632,2468.5,2468.3,0.7705]
[1728798309129,4.85272,2468.6,2468.3,0.40810196]
[1728798309332,1.55452675,2468.5,2468.3,0.40810196]
[1728798310229,1.55452675,2468.5,2468.1,0.7854]
[1728798311784,0.05495043,2468.5,2468.1,0.7854]
[1728798311947,0.05495043,2468.5,2468.2,0.41223134]
[1728798312687,0.05495043,2468.5,2468.4,2.28497632]
[1728798312900,0.05495043,2468.5,2468.4,6.33617632]
[1728798313204,0.05440526,2468.5,2468.4,6.33617632]
[1728798313386,0.42338103,2468.9,2468.5,4.05091]
[1728798313559,0.42338103,2468.9,2468.5,6.33588632]
[1728798313759,0.42338103,2468.9,2468.6,5.55044632]
[1728798313958,0.42338103,2468.9,2468.6,4.05087]
[1728798314763,0.42338103,2468.9,2468.7,4.0507]
[1728798314971,12.16165,2469.2,2468.6,5.08957463]
[1728798314972,8.16111237,2469.2,2468.9,4.05037]
[1728798315164,0.85111237,2469.3,2468.9,4.05037]
[1728798315368,1.70031515,2469.4,2468.9,4.05037]
[1728798315369,1.27451296,2469.4,2468.9,5.54994632]
[1728798315564,1.49957632,2469.1,2468.4,3.0]
[1728798315805,1.65281237,2469.3,2468.7,0.7854]
[1728798315960,3.15238869,2469.3,2468.8,4.05054]
[1728798316468,2.30127632,2469.3,2468.8,4.05054]
[1728798316859,1.49957632,2469.2,2468.8,4.05054]
[1728798317601,0.05503024,2469.1,2468.8,4.05054]
[1728798318004,0.05503024,2469.1,2468.7,0.7854]
[1728798318209,0.05503024,2469.1,2468.7,4.83608]
[1728798318526,0.05503024,2469.1,2468.7,5.98673803]
[1728798318731,0.05503024,2469.1,2469.0,2.04957632]
[1728798319040,2.35068869,2469.6,2469.1,4.05]
[1728798319647,1.49957632,2469.6,2469.1,4.05]
[1728798321406,1.49957632,2469.4,2469.0,0.7854]
[1728798322472,2.35068869,2469.5,2469.0,4.8355]
[1728798322850,1.49957632,2469.5,2469.0,4.8355]
[1728798323235,2.35068869,2469.5,2469.0,4.8355]
[1728798323761,2.35068869,2469.5,2469.0,5.24785146]
[1728798325948,0.85111237,2469.5,2469.2,4.83518]
[1728798326375,0.85111237,2469.6,2469.2,4.83518]
[1728798327524,0.85111237,2469.6,2469.2,0.7854]
[1728798328035,0.85111237,2469.6,2469.2,4.83528]
[1728798329717,0.85111237,2469.6,2469.2,0.7854]
[1728798329930,6.17167597,2469.9,2469.6,3.8276]
[1728798329931,0.85111237,2469.9,2469.6,3.8276]
[1728798330137,0.85111237,2470.1,2469.7,1.49957632]
[1728798330332,0.85111237,2470.2,2469.7,5.54851632]
[1728798330534,0.85111237,2470.2,2469.7,8.09789]
[1728798330735,0.85111237,2470.2,2469.7,4.04894]
[1728798331559,2.35068869,2470.2,2469.7,4.04894]
[1728798331743,1.49957632,2470.1,2469.7,4.04894]
[1728798331947,0.85111237,2470.2,2469.7,4.04894]
[1728798331948,2.35068869,2470.2,2469.7,4.04894]
[1728798332164,1.49957632,2470.1,2469.7,4.04894]
[1728798332727,0.0528561,2470.0,2469.7,4.04894]
[1728798333128,2.34767634,2470.2,2469.8,4.04889]
[1728798333360,0.05286325,2469.9,2469.8,4.04889]
[1728798333670,0.05286325,2469.9,2469.7,4.04894]
[1728798333869,1.49957632,2470.1,2469.7,4.04894]
[1728798334027,0.05276315,2469.8,2469.7,4.04894]
[1728798334227,1.49957632,2470.2,2469.7,5.09148563]
[1728798334427,0.05276315,2469.8,2469.7,4.04894]
[1728798334931,1.49957632,2470.1,2469.7,4.04894]
[1728798335330,0.05296335,2470.0,2469.7,4.04894]
[1728798335940,1.49957632,2470.2,2469.7,8.09788]
[1728798336139,0.05306344,2470.1,2469.7,4.04894]
[1728798337171,0.05306344,2470.1,2469.7,8.0979]
[1728798337370,0.05306344,2470.1,2469.7,4.04894]
[1728798337906,2.34767634,2470.3,2469.7,4.04894]
[1728798338101,0.05296335,2470.0,2469.7,4.04894]
[1728798338398,0.05286325,2469.9,2469.7,4.04894]
[1728798338696,1.49957632,2470.3,2469.7,8.09791]
[1728798338898,0.05276315,2469.8,2469.7,8.09791]
[1728798339096,1.49957632,2470.3,2469.7,8.09791]
[1728798339097,1.49957632,2470.3,2469.8,4.04887]
[1728798341398,1.49957632,2469.9,2469.6,0.8276]
[1728798341899,1.49957632,2470.0,2469.6,0.8276]
[1728798347680,0.05291292,2469.9,2469.6,0.8276]
[1728798349615,1.49957632,2469.8,2469.4,3.0]
[1728798349817,1.49957632,2469.6,2469.4,0.7725]
[1728798350023,1.49957632,2469.7,2469.4,0.7725]
[1728798350391,0.05282262,2469.6,2469.4,0.7725]
[1728798351838,1.55239894,2469.6,2469.1,4.04997]
[1728798352128,0.05282262,2469.6,2469.1,8.87242]
[1728798352330,1.55239894,2469.6,2469.2,4.04985]
[1728798353705,0.05282262,2469.6,2469.2,4.04985]
[1728798356297,0.05282262,2469.6,2469.1,4.82245]
[1728798356298,0.05282262,2469.6,2469.3,4.04969]
[1728798358147,1.49957632,2469.8,2469.3,4.04969]
[1728798358437,2.34681118,2469.8,2469.3,8.0993]
[1728798358741,0.05265909,2469.7,2469.3,4.04961]
[1728798359257,0.05075391,2469.6,2469.3,4.04961]
[1728798359628,2.34681118,2469.8,2469.3,4.04961]
[1728798359826,0.05047378,2469.5,2469.3,4.0496]
[1728798360137,2.34681118,2469.8,2469.3,4.0496]
[1728798360324,0.05033094,2469.4,2469.3,8.09922]
[1728798360532,2.34681118,2469.8,2469.3,4.0496]
[1728798361027,1.55020765,2469.7,2469.3,4.0496]
[1728798361228,2.39744251,2469.7,2469.3,4.0496]
[1728798361919,0.89786619,2469.7,2469.3,8.09921]
[1728798365366,0.84723486,2469.6,2469.3,8.09921]
[1728798365825,0.05043108,2469.5,2469.3,8.09921]
[1728798367661,0.05043108,2469.5,2469.3,4.0496]
[1728798368635,0.05043108,2469.5,2469.3,8.09923]
[1728798368837,0.05043108,2469.5,2469.3,4.0496]
[1728798369166,0.89766594,2469.5,2469.3,4.0496]
[1728798371530,0.89766594,2469.5,2469.3,8.09923]
[1728798372162,0.89766594,2469.5,2469.3,4.0496]
[1728798372367,2.39724226,2469.5,2469.1,0.7725]
[1728798372663,0.84723486,2469.3,2469.1,0.7725]
[1728798373164,0.05012469,2469.2,2469.1,0.7725]
[1728798373570,0.84723486,2469.3,2469.1,0.7725]
[1728798373763,0.05012469,2469.2,2469.1,0.7725]
[1728798374130,0.84723486,2469.3,2469.1,0.7725]
[1728798374352,0.05012469,2469.2,2469.1,0.7725]
[1728798374569,0.84723486,2469.3,2469.1,0.7725]
[1728798374886,0.05012469,2469.2,2469.1,0.7725]
[1728798375584,0.84723486,2469.3,2469.1,0.7725]
[1728798375879,0.05012469,2469.2,2469.1,0.7725]
[1728798376250,0.84723486,2469.3,2469.1,0.7725]
[1728798376775,0.05012469,2469.2,2469.1,0.7725]
[1728798376971,0.84723486,2469.3,2469.1,0.7725]
[1728798377172,0.05012469,2469.2,2469.1,0.7725]
[1728798377396,0.84723486,2469.3,2469.1,0.7725]
[1728798377690,0.05012469,2469.2,2469.1,0.7725]
[1728798378022,0.84723486,2469.3,2469.1,0.7725]
[1728798378299,0.05012469,2469.2,2469.1,0.7725]
[1728798378652,0.84723486,2469.3,2469.1,0.7725]
[1728798378868,0.05012469,2469.2,2469.1,0.7725]
[1728798379191,0.84723486,2469.3,2469.0,4.46247146]
[1728798379548,0.05012469,2469.2,2469.0,4.46247146]
[1728798379889,0.84723486,2469.3,2469.0,4.46247146]
[1728798380091,0.05002453,2469.1,2469.0,4.46247146]
[1728798380249,0.84723486,2469.3,2469.0,4.46247146]
[1728798380445,0.05002453,2469.1,2469.0,4.46247146]
[1728798380865,0.84723486,2469.3,2469.0,4.46247146]
[1728798381070,0.05002453,2469.1,2469.0,4.46247146]
[1728798381689,0.84723486,2469.3,2469.0,4.46247146]
[1728798381901,0.05002453,2469.1,2469.0,4.46247146]
[1728798382309,0.84723486,2469.3,2469.0,0.41235146]
[1728798382762,0.05012469,2469.2,2469.0,0.41235146]
[1728798382953,0.84723486,2469.3,2469.0,0.41235146]
[1728798383159,0.05012469,2469.2,2469.0,0.41235146]
[1728798383464,0.84723486,2469.3,2469.0,0.41235146]
[1728798383663,0.84723486,2469.3,2469.0,4.46257146]
[1728798383664,0.05002453,2469.1,2469.0,4.46257146]
[1728798383864,0.84723486,2469.3,2469.0,4.46257146]
[1728798384565,0.05012469,2469.2,2469.0,0.41235146]
[1728798385176,0.84723486,2469.3,2469.0,0.41235146]
[1728798385567,0.05010182,2469.2,2469.0,0.41235146]
[1728798385767,0.84723486,2469.3,2469.0,0.41235146]
[1728798385987,0.05010182,2469.2,2469.0,0.41235146]
[1728798386163,0.84723486,2469.3,2469.0,0.41235146]
[1728798386361,0.05010182,2469.2,2469.0,0.41235146]
[1728798386656,0.84723486,2469.3,2469.0,0.41235146]
[1728798386863,0.05000166,2469.1,2469.0,0.41235146]
[1728798387104,0.84723486,2469.3,2469.0,0.41235146]
[1728798387262,0.05000166,2469.1,2469.0,0.41235146]
[1728798387462,0.84723486,2469.3,2469.0,0.41235146]
[1728798387703,0.05000166,2469.1,2469.0,0.41235146]
[1728798388211,0.84723486,2469.3,2469.0,0.41235146]
[1728798388363,0.05010182,2469.2,2469.0,0.41235146]
[1728798388569,3.14851118,2469.3,2469.0,0.41235146]
[1728798388891,0.05010182,2469.2,2469.0,0.41235146]
[1728798389200,3.14851118,2469.3,2469.0,0.41235146]
[1728798389419,0.05010182,2469.2,2469.0,0.41235146]
[1728798389912,0.05000166,2469.1,2469.0,0.41235146]
[1728798390471,1.54957798,2469.1,2469.0,0.41235146]
[1728798390673,1.54957798,2469.1,2468.7,0.7838]
[1728798390674,2.39681284,2469.1,2468.7,0.7838]
[1728798391125,0.89723652,2469.1,2468.7,0.7838]
[1728798391726,0.84723486,2469.0,2468.7,0.7838]
[1728798392027,0.04977152,2468.9,2468.7,0.7838]
[1728798395800,0.04977152,2468.9,2468.8,4.05055]
[1728798396791,0.84723486,2469.1,2468.8,4.05055]
[1728798396997,0.0498459,2469.0,2468.8,4.05055]
[1728798399684,0.0498459,2469.0,2468.7,6.33403632]
[1728798400545,0.0498459,2469.0,2468.8,4.05052]
[1728798401900,0.8017,2468.9,2468.5,0.40943456]
[1728798402101,0.8017,2468.9,2468.5,4.7637533]
[1728798402428,0.04964553,2468.8,2468.5,5.5475533]
[1728798402589,0.04964553,2468.8,2468.5,7.04712962]
[1728798402921,0.04964553,2468.8,2468.5,7.04712933]
[1728798403525,0.04964553,2468.8,2468.5,7.04712203]
[1728798405932,0.04964553,2468.8,2468.5,6.74373088]
[1728798406134,0.04964553,2468.8,2468.5,5.24415456]
[1728798406426,0.04964553,2468.8,2468.5,1.19323456]
[1728798406634,0.04964553,2468.8,2468.5,2.69281088]
[1728798406833,0.04964553,2468.8,2468.5,6.74385088]
[1728798409545,0.04964553,2468.8,2468.6,1.49957632]
[1728798409836,0.04964553,2468.8,2468.5,6.74385088]
[1728798411140,0.04964553,2468.8,2468.5,5.24427456]
[1728798414220,0.04964553,2468.8,2468.5,5.54781451]
[1728798414418,0.04964553,2468.8,2468.5,5.24427456]
[1728798414622,0.04964553,2468.8,2468.5,5.5478147]
[1728798415353,0.04964553,2468.8,2468.5,5.24427456]
[1728798415579,0.04964553,2468.8,2468.5,1.19323456]
[1728798417268,0.04964553,2468.8,2468.6,0.12684024]
[1728798417439,0.04964553,2468.8,2468.5,1.19323456]
[1728798417641,0.04964553,2468.8,2468.6,0.12684015]
[1728798417842,0.04964553,2468.8,2468.5,1.19323456]
[1728798418041,0.04964553,2468.8,2468.6,0.12684025]
[1728798418247,0.04964553,2468.8,2468.5,1.19323456]
[1728798418739,0.04964553,2468.8,2468.6,0.12684024]
[1728798418976,0.04964553,2468.8,2468.5,1.19323456]
[1728798419128,0.04964553,2468.8,2468.6,0.12684024]
[1728798419343,0.04964553,2468.8,2468.5,5.24422456]
[1728798419534,0.04964553,2468.8,2468.6,0.12684022]
[1728798419734,0.04964553,2468.8,2468.5,5.24422456]
[1728798419978,0.04964553,2468.8,2468.6,0.12683975]
[1728798420146,0.04964553,2468.8,2468.5,6.74380088]
[1728798420351,0.04964553,2468.8,2468.6,0.12683958]
[1728798420551,0.04964553,2468.8,2468.5,6.74380088]
[1728798420767,0.04964553,2468.8,2468.6,0.1268395]
[1728798420975,0.04964553,2468.8,2468.5,6.74380088]
[1728798421277,0.04964553,2468.8,2468.6,0.12683957]
[1728798421478,0.04964553,2468.8,2468.5,6.74380088]
[1728798421690,0.04964553,2468.8,2468.6,0.12683941]
[1728798421854,0.04964553,2468.8,2468.5,6.74380088]
[1728798422052,0.04964553,2468.8,2468.6,0.12683936]